fUST/lending_fUST_20250715
["ID","MTS","AMOUNT","RATE_DAILY","PERIOD"]
[372101872,1752520265552,-335.1285609,0.0001863,2]
[372101873,1752520265563,-1537.56,0.0001863,2]
[372101874,1752520265574,-814.88,0.0001863,2]
[372101875,1752520265584,-1084.02,0.0001863,2]
[372101876,1752520265593,-477.27,0.0001863,2]
[372101877,1752520265603,-4635.59,0.0001863,2]
[372101878,1752520265612,-460.0,0.0001863,2]
[372101879,1752520265623,-460.0,0.0001863,2]
[372101880,1752520265632,-460.0,0.0001863,2]
[372101881,1752520265642,-151.0,0.0001863,2]
[372101882,1752520265652,-151.0,0.00018674,2]
[372101883,1752520265662,-2213.13146575,0.00018674,2]
[372101884,1752520265672,-151.0,0.00018685,2]
[372101885,1752520265681,-5219.61730802,0.00018728,2]
[372101886,1752520265691,-1500.0,0.00018736,2]
[372101887,1752520265702,-260.0,0.00018783,2]
[372101888,1752520265712,-293.0,0.00018797,2]
[372101889,1752520265721,-293.0,0.00018809,2]
[372101890,1752520265731,-303.07879564,0.000189,2]
[372101891,1752520265741,-1041.43133398,0.000189,2]
[372101892,1752520265750,-303.07576439,0.000189,2]
[372101893,1752520265760,-151.0,0.00018904,2]
[372101894,1752520265770,-151.0,0.00018904,2]
[372101895,1752520265779,-278.45104,0.00018904,2]
[372101896,1752520265790,-151.0,0.00018904,2]
[372101897,1752520265800,-151.0,0.00018904,2]
[372101898,1752520265810,-460.0,0.00018904,2]
[372101899,1752520265821,-460.0,0.00018904,2]
[372101900,1752520265834,-460.0,0.00018904,2]
[372101901,1752520265844,-151.0,0.00018904,2]
[372101902,1752520265853,-460.0,0.00018904,2]
[372101903,1752520265863,-263.0,0.00018904,2]
[372101904,1752520265882,-203.265745,0.00018904,2]
[372101905,1752520265892,-203.265745,0.00018904,2]
[372101906,1752520265902,-460.0,0.00018904,2]
[372101907,1752520265911,-460.0,0.00018904,2]
[372101908,1752520265922,-460.0,0.00018904,2]
[372101909,1752520265933,-460.0,0.00018904,2]
[372101910,1752520265944,-151.0,0.00018904,2]
[372101911,1752520265956,-460.0,0.00018904,2]
[372101912,1752520265966,-460.0,0.00018904,2]
[372101913,1752520265975,-498.93,0.00018904,2]
[372101914,1752520265985,-803.18,0.00018904,2]
[372101915,1752520265995,-516.25,0.00018904,2]
[372101916,1752520266005,-460.0,0.00018904,2]
[372101917,1752520266015,-533.59,0.00018904,2]
[372101918,1752520266025,-460.0,0.00018904,2]
[372101919,1752520266036,-460.0,0.00018904,2]
[372101920,1752520266046,-791.69,0.00018904,2]
[372101921,1752520266057,-460.0,0.00018904,2]
[372101922,1752520266067,-460.0,0.00018904,2]
[372101923,1752520266076,-151.0,0.00018904,2]
[372101924,1752520266088,-699.42,0.00018904,2]
[372101925,1752520266097,-460.0,0.00018904,2]
[372101926,1752520266106,-460.0,0.00018904,2]
[372101927,1752520266117,-460.0,0.00018904,2]
[372101928,1752520266127,-1526.91,0.00018904,2]
[372101929,1752520266137,-777.08,0.00018904,2]
[372101930,1752520266146,-721.29,0.00018904,2]
[372101931,1752520266158,-862.14,0.00018904,2]
[372101932,1752520266170,-957.36,0.00018904,2]
[372101933,1752520266180,-474.16,0.00018904,2]
[372101934,1752520266189,-4466.74,0.00018904,2]
[372101935,1752520266201,-460.0,0.00018904,2]
[372101936,1752520266211,-6194.88,0.00018904,2]
[372101937,1752520266220,-493.17,0.00018904,2]
[372101938,1752520266229,-460.0,0.00018904,2]
[372101939,1752520266240,-569.09,0.00018904,2]
[372101940,1752520266249,-2614.87,0.00018904,2]
[372101941,1752520266258,-460.0,0.00018904,2]
[372101942,1752520266267,-1051.68,0.00018904,2]
[372101943,1752520266277,-994.12,0.00018904,2]
[372101944,1752520266286,-1792.12,0.00018904,2]
[372101945,1752520266295,-460.0,0.00018904,2]
[372101946,1752520266305,-460.0,0.00018904,2]
[372101947,1752520266314,-724.35,0.00018904,2]
[372101948,1752520266324,-794.94,0.00018904,2]
[372101949,1752520266334,-627.51,0.00018904,2]
[372101950,1752520266343,-730.53,0.00018904,2]
[372101951,1752520266353,-1457.7,0.00018904,2]
[372101952,1752520266363,-460.0,0.00018904,2]
[372101953,1752520266372,-460.0,0.00018904,2]
[372101954,1752520266382,-485.22,0.00018904,2]
[372101955,1752520266391,-460.0,0.00018904,2]
[372101956,1752520266400,-460.0,0.00018904,2]
[372101957,1752520266410,-1500.19,0.00018904,2]
[372101958,1752520266419,-1537.56,0.00018904,2]
[372101959,1752520266428,-814.88,0.00018904,2]
[372101960,1752520266438,-1084.02,0.00018904,2]
[372101961,1752520266447,-477.27,0.00018904,2]
[372101962,1752520266457,-4635.59,0.00018904,2]
[372101963,1752520266469,-460.0,0.00018904,2]
[372101964,1752520266480,-460.0,0.00018904,2]
[372101965,1752520266490,-460.0,0.00018904,2]
[372101966,1752520266499,-199.0,0.00018938,2]
[372101967,1752520266510,-180.02880461,0.00018944,2]
[372101968,1752520266521,-199.0,0.0001899,2]
[372101969,1752520266531,-1000.0,0.00019,2]
[372101970,1752520266630,-1000.0,0.00019,2]
[372101971,1752520266640,-1000.0,0.00019,2]
[372101972,1752520266650,-1000.0,0.00019,2]
[372101973,1752520266660,-1000.0,0.00019,2]
[372101974,1752520266669,-1000.0,0.00019,2]
[372101975,1752520266679,-1000.0,0.00019,2]
[372101976,1752520266689,-1000.0,0.00019,2]
[372101977,1752520266698,-465.48,0.00019,3]
[372101978,1752520266707,-151.0,0.00019,2]
[372101979,1752520266717,-523.392471,0.00019,2]
[372101980,1752520266727,-523.392471,0.00019,2]
[372101981,1752520266737,-1000.0,0.00019,2]
[372101982,1752520266748,-151.0,0.00019002,2]
[372101983,1752520266759,-151.0,0.00019002,2]
[372101984,1752520266769,-151.0,0.00019002,2]
[372101985,1752520266779,-5219.61730802,0.00019003,2]
[372101986,1752520266789,-244.309742,0.00019004,2]
[372101987,1752520266803,-244.309742,0.00019004,2]
[372101988,1752520266814,-151.0,0.00019004,2]
[372101989,1752520266824,-199.0,0.0001901,2]
[372101990,1752520266834,-199.0,0.00019017,2]
[372101991,1752520266843,-303.07879564,0.00019089,2]
[372101992,1752520266853,-626.955,0.00019094,2]
[372101993,1752520266862,-178.092,0.00019094,2]
[372101994,1752520266872,-11325.26849278,0.000191,2]
[372101995,1752520266882,-2200.0,0.00019144,2]
[372101996,1752520266892,-654.326,0.00019144,2]
[372101997,1752520266902,-199.0,0.00019147,2]
[372101998,1752520266911,-600.0,0.00019168,2]
[372101999,1752520266921,-587.0,0.00019169,2]
[372102000,1752520266930,-151.0,0.00019178,2]
[372102001,1752520266940,-193.6367,0.00019178,2]
[372102002,1752520266950,-193.6367,0.00019178,2]
[372102003,1752520266960,-246.055945,0.00019178,2]
[372102004,1752520266970,-151.0,0.00019178,2]
[372102005,1752520266981,-460.0,0.00019178,2]
[372102006,1752520266991,-460.0,0.00019178,2]
[372102007,1752520267000,-460.0,0.00019178,2]
[372102008,1752520267010,-151.0,0.00019178,2]
[372102009,1752520267019,-460.0,0.00019178,2]
[372102010,1752520267028,-453.663379,0.00019178,2]
[372102011,1752520267037,-453.663379,0.00019178,2]
[372102012,1752520267047,-460.0,0.00019178,2]
[372102013,1752520267056,-460.0,0.00019178,2]
[372102014,1752520267066,-460.0,0.00019178,2]
[372102015,1752520267075,-460.0,0.00019178,2]
[372102016,1752520267086,-460.0,0.00019178,2]
[372102017,1752520267096,-266.7209629,0.00019178,2]
[372102018,1752520267106,-498.93,0.00019178,2]
[372102019,1752520267117,-803.18,0.00019178,2]
[372102020,1752520267127,-516.25,0.00019178,2]
[372102021,1752520267136,-460.0,0.00019178,2]
[372102022,1752520267146,-533.59,0.00019178,2]
[372102023,1752520267156,-460.0,0.00019178,2]
[372102024,1752520267170,-460.0,0.00019178,2]
[372102025,1752520267180,-791.69,0.00019178,2]
[372102026,1752520267190,-460.0,0.00019178,2]
[372102027,1752520267200,-460.0,0.00019178,2]
[372102028,1752520267211,-699.42,0.00019178,2]
[372102029,1752520267220,-216.94396209,0.00019178,2]
[372102030,1752520267230,-277.162374,0.00019178,2]
[372102031,1752520267240,-277.162374,0.00019178,2]
[372102032,1752520267249,-460.0,0.00019178,2]
[372102033,1752520267259,-500.0,0.00019178,2]
[372102034,1752520267269,-338.61259214,0.00019178,2]
[372102035,1752520267278,-1526.91,0.00019178,2]
[372102036,1752520267287,-777.08,0.00019178,2]
[372102037,1752520267297,-721.29,0.00019178,2]
[372102038,1752520267307,-862.14,0.00019178,2]
[372102039,1752520267316,-957.36,0.00019178,2]
[372102040,1752520267325,-474.16,0.00019178,2]
[372102041,1752520267336,-4466.74,0.00019178,2]
[372102042,1752520267346,-551.7,0.00019178,2]
[372102043,1752520267355,-214.669876,0.00019178,2]
[372102044,1752520267365,-214.669876,0.00019178,2]
[372102045,1752520267374,-6194.88,0.00019178,2]
[372102046,1752520267383,-493.17,0.00019178,2]
[372102047,1752520267393,-460.0,0.00019178,2]
[372102048,1752520267403,-569.09,0.00019178,2]
[372102049,1752520267412,-2614.87,0.00019178,2]
[372102050,1752520267421,-460.0,0.00019178,2]
[372102051,1752520267431,-1051.68,0.00019178,2]
[372102052,1752520267440,-994.12,0.00019178,2]
[372102053,1752520267450,-1792.12,0.00019178,2]
[372102054,1752520267460,-460.0,0.00019178,2]
[372102055,1752520267469,-460.0,0.00019178,2]
[372102056,1752520267479,-151.0,0.00019178,2]
[372102057,1752520267489,-724.35,0.00019178,2]
[372102058,1752520267499,-794.94,0.00019178,2]
[372102059,1752520267509,-627.51,0.00019178,2]
[372102060,1752520267518,-730.53,0.00019178,2]
[372102061,1752520267528,-1457.7,0.00019178,2]
[372102062,1752520267538,-460.0,0.00019178,2]
[372102063,1752520267548,-460.0,0.00019178,2]
[372102064,1752520267557,-485.22,0.00019178,2]
[372102065,1752520267567,-460.0,0.00019178,2]
[372102066,1752520267577,-460.0,0.00019178,2]
[372102067,1752520267587,-1500.19,0.00019178,2]
[372102068,1752520267597,-1537.56,0.00019178,2]
[372102069,1752520267607,-814.88,0.00019178,2]
[372102070,1752520267616,-1084.02,0.00019178,2]
[372102071,1752520267625,-477.27,0.00019178,2]
[372102072,1752520267635,-4635.59,0.00019178,2]
[372102073,1752520267644,-460.0,0.00019178,2]
[372102074,1752520267654,-460.0,0.00019178,2]
[372102075,1752520267664,-460.0,0.00019178,2]
[372102076,1752520267673,-666.0,0.00019178,2]
[372102077,1752520267683,-5000.0,0.00019178,2]
[372102078,1752520267692,-5000.0,0.00019178,2]
[372102079,1752520267703,-1404.8455287,0.00019178,2]
[372102080,1752520267712,-416.135196,0.00019178,2]
[372102081,1752520267722,-168.0,0.00019192,2]
[372102082,1752520267731,-168.0,0.00019199,2]
[372102083,1752520267742,-3246.0,0.000192,2]
[372102084,1752520267752,-151.0,0.000192,2]
[372102085,1752520267762,-151.0,0.000192,2]
[372102086,1752520267772,-151.0,0.000192,2]
[372102087,1752520267781,-151.0,0.000192,2]
[372102088,1752520267791,-151.0,0.000192,2]
[372102089,1752520267801,-370.876294,0.000192,2]
[372102090,1752520267811,-370.876294,0.000192,2]
[372102091,1752520267820,-185.35799,0.000192,2]
[372102092,1752520267832,-176.146275,0.000192,2]
[372102093,1752520267842,-176.146275,0.000192,2]
[372102094,1752520267851,-7888.81,0.000192,2]
[372102095,1752520267861,-151.0,0.000192,2]
[372102096,1752520267871,-44568.14,0.000192,2]
[372102097,1752520267881,-199.26404,0.000192,2]
[372102098,1752520267891,-199.0,0.00019235,2]
[372102099,1752520267901,-371.45843176,0.00019269,2]
[372102100,1752520267913,-151.0,0.00019271,3]
[372102101,1752520267929,-303.07879564,0.00019278,2]
[372102102,1752520267951,-5219.61730802,0.00019279,2]
[372102103,1752520267962,-2000.0,0.00019284,2]
[372102104,1752520267972,-800.0,0.00019289,2]
[372102105,1752520267982,-180826.10242926,0.00019328,7]
[372102106,1752520268162,-460.0,0.00016438,2]
[372102107,1752520268181,-12789.03833532,0.00019328,7]
[372102108,1752520268197,-11442.20846664,0.00019328,7]
[372102109,1752520268521,-460.0,0.00016712,2]
[372102110,1752520268532,-1007.2,0.00016712,2]
[372102111,1752520268543,-460.0,0.00016712,2]
[372102112,1752520268554,-460.0,0.00016986,2]
[372102113,1752520268567,-1007.2,0.00016986,2]
[372102114,1752520268577,-460.0,0.00016986,2]
[372102115,1752520268587,-645.25,0.0001726,2]
[372102116,1752520268597,-1007.2,0.0001726,2]
[372102117,1752520268606,-460.0,0.0001726,2]
[372102118,1752520268616,-460.0,0.0001726,2]
[372102119,1752520268626,-645.25,0.00017534,2]
[372102120,1752520268635,-1007.2,0.00017534,2]
[372102121,1752520268646,-460.0,0.00017534,2]
[372102122,1752520268658,-460.0,0.00017534,2]
[372102123,1752520268668,-645.25,0.00017808,2]
[372102124,1752520268677,-1007.2,0.00017808,2]
[372102125,1752520268686,-460.0,0.00017808,2]
[372102126,1752520268696,-460.0,0.00017808,2]
[372102127,1752520268706,-645.25,0.00018082,2]
[372102128,1752520268716,-1007.2,0.00018082,2]
[372102129,1752520268725,-324.03494865,0.00018082,2]
[372102130,1752520268735,-460.0,0.00018082,2]
[372102131,1752520268746,-645.25,0.00018356,2]
[372102132,1752520268755,-1007.2,0.00018356,2]
[372102133,1752520268765,-645.25,0.0001863,2]
[372102134,1752520268776,-1007.2,0.0001863,2]
[372102135,1752520268786,-645.25,0.00018904,2]
[372102136,1752520268796,-151.0,0.00019178,2]
[372102137,1752520268806,-127486.72178324,0.00019328,7]
[372102138,1752520269121,-460.0,0.00016438,2]
[372102139,1752520269132,-342.41563359,0.00018904,2]
[372102140,1752520269144,-664.78436641,0.00018904,2]
[372102141,1752520269155,-645.25,0.00019178,2]
[372102142,1752520269175,-1007.2,0.00019178,2]
[372102143,1752520269186,-8403.23066927,0.00019328,7]
[372102144,1752520269213,-460.0,0.00016438,2]
[372102145,1752520269222,-4585.3766655,0.00019328,7]
[372102146,1752520269325,2996.1868267,0.00015652,2]
[372102147,1752520269476,-460.0,0.00016438,2]
[372102148,1752520269485,-460.0,0.00016438,2]
[372102149,1752520269495,-460.0,0.00016438,2]
[372102150,1752520269505,-460.0,0.00016438,2]
[372102151,1752520269516,-20344.00629149,0.00019328,7]
[372102152,1752520269527,-151.0,0.00019328,2]
[372102153,1752520269538,-193.6367,0.00019328,2]
[372102154,1752520269547,-193.6367,0.00019328,2]
[372102155,1752520269556,-151.0,0.00019328,2]
[372102156,1752520269566,-151.0,0.00019328,2]
[372102157,1752520269575,-151.0,0.00019328,2]
[372102158,1752520269584,-151.0,0.00019328,2]
[372102159,1752520269594,-151.0,0.00019328,2]
[372102160,1752520269603,-500.0,0.00019328,14]
[372102161,1752520269612,-500.0,0.00019328,14]
[372102162,1752520269621,-601.73193492,0.00019328,14]
[372102163,1752520269631,-500.0,0.00019328,14]
[372102164,1752520269640,-507.88102497,0.00019328,14]
[372102165,1752520269649,-151.0,0.00019328,2]
[372102166,1752520269659,-151.0,0.00019328,2]
[372102167,1752520269669,-159.604041,0.00019328,2]
[372102168,1752520269679,-151.0,0.00019328,2]
[372102169,1752520269690,-154.262419,0.00019328,2]
[372102170,1752520269700,-151.0,0.00019328,2]
[372102171,1752520269710,-370.876294,0.00019328,2]
[372102172,1752520269722,-370.876294,0.00019328,2]
[372102173,1752520269733,-176.146275,0.00019328,2]
[372102174,1752520269743,-176.146275,0.00019328,2]
[372102175,1752520269753,-151.0,0.00019328,2]
[372102176,1752520269762,-523.392471,0.00019328,2]
[372102177,1752520269772,-523.392471,0.00019328,2]
[372102178,1752520269781,-453.663379,0.00019328,2]
[372102179,1752520269792,-453.663379,0.00019328,2]
[372102180,1752520269802,-151.0,0.00019328,2]
[372102181,1752520269813,-203.265745,0.00019328,2]
[372102182,1752520269823,-203.265745,0.00019328,2]
[372102183,1752520269832,-244.309742,0.00019328,2]
[372102184,1752520269842,-244.309742,0.00019328,2]
[372102185,1752520269853,-151.0,0.00019328,2]
[372102186,1752520269862,-151.0,0.00019328,2]
[372102187,1752520269871,-277.162374,0.00019328,2]
[372102188,1752520269881,-277.162372,0.00019328,2]
[372102189,1752520269891,-214.669876,0.00019328,2]
[372102190,1752520269901,-214.669876,0.00019328,2]
[372102191,1752520269910,-151.0,0.00019328,2]
[372102192,1752520269920,-151.0,0.00019328,2]
[372102193,1752520269929,-73736.64425503,0.00019329,2]
[372102194,1752520285745,6848.8131733,0.00015934,2]
[372102195,1752520285768,10000.0,0.00015934,2]
[372102196,1752520285792,10000.0,0.00015934,2]
[372102197,1752520285814,10000.0,0.00015934,2]
[372102198,1752520285836,10000.0,0.00015934,2]
[372102199,1752520285860,10000.0,0.00015934,2]
[372102202,1752520507057,156.546168,0.000198,20]
[372102203,1752520584123,467.53785,0.00013699,2]
[372102208,1752520880881,434.187624,0.00027397,120]
[372102209,1752520898674,157.71,0.00017196,7]
[372102211,1752520966656,15301.26381672,0.00014909,2]
[372102212,1752520966681,9598.73618328,0.00014909,2]
[372102213,1752521106592,156.546169,0.000198,20]
[372102239,1752521432249,-232.91699806,0.00015733,2]
[372102240,1752521432260,-207.83825011,0.00015734,2]
[372102241,1752521432270,-207.83825011,0.00015833,2]
[372102242,1752521432280,-334.38974568,0.00015834,2]
[372102243,1752521432297,-1311.61025432,0.00015834,2]
[372102244,1752521432307,-2436.43689975,0.00015873,2]
[372102245,1752521432317,-1200.0,0.00015897,2]
[372102246,1752521432327,-300.0,0.00015897,2]
[372102247,1752521432336,-300.0,0.00015897,2]
[372102248,1752521432348,-300.0,0.00015897,2]
[372102249,1752521432358,-1200.0,0.00015897,2]
[372102250,1752521432367,-50000.0,0.00015898,2]
[372102251,1752521432377,-5282.76937441,0.000159,2]
[372102252,1752521432387,-500.0,0.00015933,2]
[372102253,1752521432396,-500.0,0.00015933,2]
[372102254,1752521432406,-500.0,0.00015933,2]
[372102255,1752521432415,-500.0,0.00015933,2]
[372102257,1752521432425,-348.90803251,0.00015933,2]
[372102258,1752521432434,-500.0,0.00015933,2]
[372102260,1752521432444,-500.0,0.00015933,2]
[372102262,1752521432454,-500.0,0.00015933,2]
[372102263,1752521432463,-500.0,0.00015933,2]
[372102265,1752521432475,-500.0,0.00015933,2]
[372102267,1752521432485,-500.0,0.00015933,2]
[372102269,1752521432494,-500.0,0.00015933,2]
[372102271,1752521432504,-500.0,0.00015933,2]
[372102272,1752521432518,-500.0,0.00015933,2]
[372102274,1752521432528,-500.0,0.00015933,2]
[372102275,1752521432537,-500.0,0.00015933,2]
[372102276,1752521432548,-500.0,0.00015933,2]
[372102277,1752521432558,-500.0,0.00015933,2]
[372102278,1752521432568,-500.0,0.00015933,2]
[372102279,1752521432578,-329.48307495,0.00015933,2]
[372102280,1752521432601,-170.51692505,0.00015933,2]
[372102281,1752521432612,-500.0,0.00015933,2]
[372102282,1752521432622,-500.0,0.00015933,2]
[372102283,1752521432631,-500.0,0.00015933,2]
[372102285,1752521432641,-500.0,0.00015933,2]
[372102287,1752521432651,-418.60864079,0.00015933,2]
[372102289,1752521432660,-500.0,0.00015933,2]
[372102291,1752521432669,-500.0,0.00015933,2]
[372102293,1752521432679,-500.0,0.00015933,2]
[372102295,1752521432689,-500.0,0.00015933,2]
[372102297,1752521432698,-500.0,0.00015933,2]
[372102299,1752521432707,-500.0,0.00015933,2]
[372102300,1752521432718,-500.0,0.00015933,2]
[372102302,1752521432727,-500.0,0.00015933,2]
[372102304,1752521432737,-500.0,0.00015933,2]
[372102306,1752521432748,-500.0,0.00015933,2]
[372102308,1752521432757,-500.0,0.00015933,2]
[372102310,1752521432766,-249.55786762,0.00015933,2]
[372102313,1752521432778,-250.44213238,0.00015933,2]
[372102315,1752521432788,-83.42337747,0.00015933,2]
[372102317,1752521432799,-402.67135502,0.00015933,2]
[372102320,1752521432820,-12.28392005,0.00015933,2]
[372102322,1752521432831,-500.0,0.00015933,2]
[372102324,1752521432840,-500.0,0.00015933,2]
[372102326,1752521432855,-500.0,0.00015933,2]
[372102328,1752521432865,-500.0,0.00015933,2]
[372102330,1752521432874,-254.76853957,0.00015933,2]
[372102332,1752521432884,-500.0,0.00015933,2]
[372102334,1752521432894,-500.0,0.00015933,2]
[372102336,1752521432903,-500.0,0.00015933,2]
[372102339,1752521432913,-182.38609611,0.00015933,2]
[372102341,1752521432923,-500.0,0.00015933,2]
[372102343,1752521432932,-500.0,0.00015933,2]
[372102345,1752521432945,-500.0,0.00015933,2]
[372102347,1752521432954,-500.0,0.00015933,2]
[372102349,1752521432963,-500.0,0.00015933,2]
[372102351,1752521432973,-500.0,0.00015933,2]
[372102354,1752521432984,-500.0,0.00015933,2]
[372102356,1752521432994,-500.0,0.00015933,2]
[372102358,1752521433003,-194.94500413,0.00015933,2]
[372102360,1752521433013,-500.0,0.00015933,2]
[372102362,1752521433023,-500.0,0.00015933,2]
[372102364,1752521433032,-500.0,0.00015933,2]
[372102366,1752521433042,-500.0,0.00015933,2]
[372102368,1752521433052,-500.0,0.00015933,2]
[372102370,1752521433062,-500.0,0.00015933,2]
[372102372,1752521433072,-13140.41492983,0.00015934,2]
[372102393,1752521438389,-354.65,0.00015924,3]
[372102394,1752521438400,-943.23913375,0.00015934,2]
[372102395,1752521438415,-4032.05783155,0.00015934,2]
[372102396,1752521438427,-295035.47493157,0.00015934,2]
[372102397,1752521438437,-500.0,0.00015973,2]
[372102398,1752521438446,-500.0,0.00015973,2]
[372102399,1752521438455,-500.99239054,0.00015973,2]
[372102400,1752521438465,-567.79029431,0.00015973,2]
[372102402,1752521438478,-231.16956046,0.00015973,2]
[372102403,1752521438487,-502.32431203,0.00015973,2]
[372102404,1752521438497,-195.6451407,0.00015973,2]
[372102405,1752521438506,-500.0,0.00015973,2]
[372102406,1752521438517,-500.0,0.00015973,2]
[372102407,1752521438527,-500.0,0.00015973,2]
[372102408,1752521438536,-500.91771054,0.00015973,2]
[372102409,1752521438547,-500.0,0.00015973,2]
[372102410,1752521438557,-500.0,0.00015973,2]
[372102411,1752521438566,-500.0,0.00015973,2]
[372102412,1752521438576,-205.61863548,0.00015973,2]
[372102413,1752521438586,-500.0,0.00015973,2]
[372102414,1752521438595,-500.0,0.00015973,2]
[372102415,1752521438606,-500.0,0.00015973,2]
[372102416,1752521438615,-500.0,0.00015973,2]
[372102417,1752521438625,-500.0,0.00015973,2]
[372102418,1752521438634,-155.03621667,0.00015973,2]
[372102419,1752521438643,-180.32247162,0.00015973,2]
[372102420,1752521438652,-319.42525985,0.00015973,2]
[372102421,1752521438662,-500.0,0.00015973,2]
[372102422,1752521438671,-500.0,0.00015973,2]
[372102423,1752521438682,-500.0,0.00015973,2]
[372102424,1752521438691,-500.0,0.00015973,2]
[372102425,1752521438701,-500.0,0.00015973,2]
[372102426,1752521438710,-158.02400068,0.00015973,2]
[372102427,1752521438720,-160.03430098,0.00015973,2]
[372102428,1752521438731,-500.0,0.00015973,2]
[372102429,1752521438740,-502.89019023,0.00015973,2]
[372102430,1752521438749,-225.79108434,0.00015973,2]
[372102431,1752521438759,-500.0,0.00015973,2]
[372102432,1752521438770,-500.0,0.00015973,2]
[372102433,1752521438779,-500.0,0.00015973,2]
[372102434,1752521438789,-500.0,0.00015973,2]
[372102435,1752521438798,-500.0,0.00015973,2]
[372102436,1752521438808,-2098.54683306,0.0001603,3]
[372102437,1752521438817,-500.0,0.00016207,2]
[372102438,1752521438827,-5282.76937415,0.00016245,2]
[372102439,1752521438837,-306.0,0.000163,2]
[372102440,1752521438846,-177.2042093,0.000163,2]
[372102441,1752521438857,-429.0212778,0.000163,2]
[372102442,1752521438867,-429.0212778,0.000163,2]
[372102443,1752521438876,-429.0212778,0.000163,2]
[372102444,1752521438886,-308.0,0.00016311,2]
[372102445,1752521438895,-4106.01164159,0.00016331,5]
[372102446,1752521438905,-14610.12726792,0.00016357,2]
[372102447,1752521438915,-160.0,0.00016436,2]
[372102448,1752521438924,-460.0,0.00016438,2]
[372102449,1752521438933,-467.2902373,0.00016438,2]
[372102450,1752521438943,-460.0,0.00016438,2]
[372102451,1752521438952,-460.0,0.00016438,2]
[372102452,1752521438962,-460.0,0.00016438,2]
[372102453,1752521438972,-460.0,0.00016438,2]
[372102454,1752521438981,-460.0,0.00016438,2]
[372102455,1752521438992,-460.0,0.00016438,2]
[372102456,1752521439001,-460.0,0.00016438,2]
[372102457,1752521439012,-460.0,0.00016438,2]
[372102458,1752521439022,-460.0,0.00016438,2]
[372102459,1752521439031,-460.0,0.00016438,2]
[372102460,1752521439040,-460.0,0.00016438,2]
[372102461,1752521439050,-460.0,0.00016438,2]
[372102462,1752521439059,-460.0,0.00016438,2]
[372102463,1752521439069,-151.0,0.00016438,2]
[372102464,1752521439079,-151.0,0.00016438,2]
[372102465,1752521439088,-460.0,0.00016438,2]
[372102466,1752521439099,-151.0,0.00016438,2]
[372102467,1752521439108,-266.932146,0.00016438,2]
[372102468,1752521439117,-460.0,0.00016438,2]
[372102469,1752521439127,-460.0,0.00016438,2]
[372102470,1752521439136,-460.0,0.00016438,2]
[372102471,1752521439146,-325.57932852,0.00016438,2]
[372102472,1752521439155,-460.0,0.00016438,2]
[372102473,1752521439164,-460.0,0.00016438,2]
[372102474,1752521439173,-151.0,0.00016438,2]
[372102475,1752521439183,-151.0,0.00016438,2]
[372102476,1752521439192,-151.0,0.00016438,2]
[372102477,1752521439201,-151.0,0.00016438,2]
[372102478,1752521439211,-460.0,0.00016438,2]